[Event "*** Titled Tuesday Blitz"]
[Site "Chess.com"]
[Date "2021.03.30"]
[Round "9"]
[White "Shuvalov"]
[Black "Harry_Rakkel"]
[Result "0-1"]
[WhiteElo "2428"]
[BlackElo "2598"]
[TimeControl "180+1"]
[EndTime "11:47:30 PDT"]
[Termination "Harry_Rakkel won by resignation"]

1. Nf3 {[%clk 0:02:57.5]} 1... d5 {[%clk 0:02:58.5]} 2. c4 {[%clk 0:02:57.2]}
2... d4 {[%clk 0:02:57.6]} 3. b4 {[%clk 0:02:56.9]} 3... g5 {[%clk 0:02:56.1]}
4. Bb2 {[%clk 0:02:53.8]} 4... Bg7 {[%clk 0:02:55]} 5. Nxg5 {[%clk 0:02:53.7]}
5... e5 {[%clk 0:02:54.2]} 6. Ne4 {[%clk 0:02:51.5]} 6... f5 {[%clk 0:02:48.7]}
7. Nc5 {[%clk 0:02:51.1]} 7... b6 {[%clk 0:02:40.3]} 8. Nb3 {[%clk 0:02:51]}
8... Ne7 {[%clk 0:02:35.2]} 9. e3 {[%clk 0:02:49.2]} 9... O-O {[%clk 0:02:25.7]}
10. exd4 {[%clk 0:02:48.6]} 10... exd4 {[%clk 0:02:23.1]} 11. Qf3 {[%clk
0:02:48.1]} 11... Nbc6 {[%clk 0:02:19.7]} 12. b5 {[%clk 0:02:30.6]} 12... Nb4
{[%clk 0:02:11.7]} 13. Qxa8 {[%clk 0:02:29.4]} 13... c6 {[%clk 0:01:17.5]} 14.
Na3 {[%clk 0:02:16.7]} 14... Qc7 {[%clk 0:01:06.2]} 15. bxc6 {[%clk 0:01:58.1]}
15... Ba6 {[%clk 0:00:56.1]} 16. Nb5 {[%clk 0:01:30.5]} 16... Qe5+ {[%clk
0:00:53.1]} 17. Kd1 {[%clk 0:01:28.2]} 17... Rxa8 {[%clk 0:00:52.2]} 18. Bxd4
{[%clk 0:01:21.1]} 18... Qf4 {[%clk 0:00:49.4]} 19. Be3 {[%clk 0:01:14.7]} 19...
Qh4 {[%clk 0:00:41.8]} 20. Nc7 {[%clk 0:01:12]} 20... Rc8 {[%clk 0:00:32.4]} 21.
Nxa6 {[%clk 0:01:06.1]} 21... Nxa6 {[%clk 0:00:31.8]} 22. Rc1 {[%clk 0:01:03.7]}
22... Nxc6 {[%clk 0:00:30.9]} 23. Be2 {[%clk 0:00:58.2]} 23... Nab4 {[%clk
0:00:28.5]} 24. Bf3 {[%clk 0:00:54.1]} 24... Ne5 {[%clk 0:00:25.4]} 25. Be2
{[%clk 0:00:41.9]} 25... Nbd3 {[%clk 0:00:22.3]} 26. Rc3 {[%clk 0:00:38.8]}
26... Nxf2+ {[%clk 0:00:20.4]} 27. Bxf2 {[%clk 0:00:37.5]} 27... Qxf2 {[%clk
0:00:21.3]} 28. Rf1 {[%clk 0:00:33.9]} 28... Qxg2 {[%clk 0:00:19.9]} 29. Rg3
{[%clk 0:00:33.7]} 29... Qxh2 {[%clk 0:00:19.9]} 30. Rfg1 {[%clk 0:00:33]} 30...
Ng6 {[%clk 0:00:20]} 31. c5 {[%clk 0:00:29]} 31... bxc5 {[%clk 0:00:19.4]} 32.
Bc4+ {[%clk 0:00:29.2]} 32... Kh8 {[%clk 0:00:19.6]} 33. R1g2 {[%clk 0:00:28.4]}
33... Qh5+ {[%clk 0:00:19.3]} 34. Be2 {[%clk 0:00:27.3]} 34... Qh6 {[%clk
0:00:19.5]} 35. Na5 {[%clk 0:00:25.2]} 35... c4 {[%clk 0:00:19.4]} 36. Nxc4
{[%clk 0:00:25.1]} 36... Re8 {[%clk 0:00:19.1]} 37. Bd3 {[%clk 0:00:24.5]} 37...
Be5 {[%clk 0:00:17.6]} 38. Nxe5 {[%clk 0:00:23.7]} 38... Nxe5 {[%clk 0:00:17.9]}
39. Bxf5 {[%clk 0:00:18.8]} 39... Qf6 {[%clk 0:00:16.6]} 40. Be4 {[%clk
0:00:16.6]} 40... Qf1+ {[%clk 0:00:16.1]} 41. Kc2 {[%clk 0:00:16.4]} 41... Rc8+
{[%clk 0:00:16.1]} 42. Rc3 {[%clk 0:00:16.4]} 42... Rxc3+ {[%clk 0:00:14.3]} 43.
dxc3 {[%clk 0:00:17.3]} 43... h5 {[%clk 0:00:14.4]} 44. Rd2 {[%clk 0:00:16]}
44... Qf4 {[%clk 0:00:14.1]} 45. Bd5 {[%clk 0:00:15.5]} 45... h4 {[%clk
0:00:13.7]} 46. c4 {[%clk 0:00:15.2]} 46... h3 {[%clk 0:00:13.7]} 47. Kc3 {[%clk
0:00:15.6]} 47... h2 {[%clk 0:00:13.7]} 48. Rd1 {[%clk 0:00:15.1]} 48... Qe3+
{[%clk 0:00:13.5]} 49. Kb4 {[%clk 0:00:14.9]} 49... Nd3+ {[%clk 0:00:13.1]} 50.
Kc3 {[%clk 0:00:13.5]} 50... Nf2+ {[%clk 0:00:12.7]} 51. Kc2 {[%clk 0:00:12.9]}
51... Nxd1 {[%clk 0:00:12.8]} 52. Kxd1 {[%clk 0:00:13.8]} 52... Qg1+ {[%clk
0:00:13]} 53. Kd2 {[%clk 0:00:14.1]} 53... Kg7 {[%clk 0:00:12.5]} 54. Bh1 {[%clk
0:00:15]} 54... Qxh1 {[%clk 0:00:11.9]} 0-1

[Event "*** Titled Tuesday Blitz"]
[Site "Chess.com"]
[Date "2021.03.30"]
[Round "9"]
[White "Vaathi_Coming"]
[Black "DrVitman"]
[Result "1/2-1/2"]
[WhiteElo "2796"]
[BlackElo "2656"]
[TimeControl "180+1"]
[EndTime "11:47:31 PDT"]
[Termination "Game drawn by agreement"]

1. c4 {[%clk 0:03:00.9]} 1... Nf6 {[%clk 0:02:59.4]} 2. Nc3 {[%clk 0:03:00.5]}
2... d5 {[%clk 0:02:59.5]} 3. cxd5 {[%clk 0:03:00.6]} 3... Nxd5 {[%clk
0:03:00.4]} 4. e4 {[%clk 0:03:00.9]} 4... Nxc3 {[%clk 0:02:59.9]} 5. bxc3 {[%clk
0:03:00]} 5... g6 {[%clk 0:02:52.5]} 6. d4 {[%clk 0:03:00.1]} 6... Bg7 {[%clk
0:02:52.8]} 7. Be3 {[%clk 0:02:59.3]} 7... c5 {[%clk 0:02:51]} 8. Qd2 {[%clk
0:02:59.3]} 8... cxd4 {[%clk 0:02:49.3]} 9. cxd4 {[%clk 0:02:58.4]} 9... O-O
{[%clk 0:02:49.3]} 10. Be2 {[%clk 0:02:56.6]} 10... b6 {[%clk 0:02:49.2]} 11.
Nf3 {[%clk 0:02:51.2]} 11... Bb7 {[%clk 0:02:48.5]} 12. e5 {[%clk 0:02:48.2]}
12... Nc6 {[%clk 0:02:41.8]} 13. O-O {[%clk 0:02:44.9]} 13... e6 {[%clk
0:02:36.6]} 14. Rfd1 {[%clk 0:02:39.1]} 14... Rc8 {[%clk 0:02:35.3]} 15. Bh6
{[%clk 0:02:38]} 15... Ne7 {[%clk 0:02:30.2]} 16. Bxg7 {[%clk 0:02:35.2]} 16...
Kxg7 {[%clk 0:02:31.1]} 17. Ng5 {[%clk 0:02:32.2]} 17... h6 {[%clk 0:02:18.2]}
18. Nh3 {[%clk 0:02:28]} 18... Qd7 {[%clk 0:02:07]} 19. Nf4 {[%clk 0:02:24.6]}
19... Rfd8 {[%clk 0:02:00]} 20. Rab1 {[%clk 0:02:13.6]} 20... Nd5 {[%clk
0:01:55.7]} 21. Rb3 {[%clk 0:02:08.7]} 21... Nxf4 {[%clk 0:01:46.9]} 22. Qxf4
{[%clk 0:02:09.6]} 22... Qe7 {[%clk 0:01:45.7]} 23. Bf3 {[%clk 0:01:32.3]} 23...
Bd5 {[%clk 0:01:31.7]} 24. Bxd5 {[%clk 0:01:27.4]} 24... Rxd5 {[%clk 0:01:32.6]}
25. h4 {[%clk 0:01:25.9]} 25... Rc2 {[%clk 0:01:20.9]} 26. a3 {[%clk 0:01:24.2]}
26... Rc4 {[%clk 0:01:09.1]} 27. Rf3 {[%clk 0:01:22.4]} 27... b5 {[%clk
0:01:07.4]} 28. h5 {[%clk 0:00:58.6]} 28... g5 {[%clk 0:01:06.8]} 29. Qe4 {[%clk
0:00:59]} 29... Qd7 {[%clk 0:01:00.4]} 30. Rfd3 {[%clk 0:00:58.7]} 30... Qc6
{[%clk 0:00:47.1]} 31. f4 {[%clk 0:00:55.6]} 31... Rdxd4 {[%clk 0:00:23.3]} 32.
Qxc6 {[%clk 0:00:15]} 32... Rxd3 {[%clk 0:00:23.3]} 33. Qd6 {[%clk 0:00:14.5]}
33... Rxd6 {[%clk 0:00:21.8]} 34. exd6 {[%clk 0:00:15.4]} 34... Rc8 {[%clk
0:00:21.5]} 35. fxg5 {[%clk 0:00:16]} 35... hxg5 {[%clk 0:00:20.7]} 36. Kf2
{[%clk 0:00:16.6]} 36... f5 {[%clk 0:00:20.4]} 37. g4 {[%clk 0:00:14]} 37... Kh6
{[%clk 0:00:19]} 38. Kf3 {[%clk 0:00:10.6]} 38... Rd8 {[%clk 0:00:17.4]} 39. d7
{[%clk 0:00:10.5]} 39... a5 {[%clk 0:00:16.8]} 40. Rd6 {[%clk 0:00:10.6]} 40...
Kg7 {[%clk 0:00:16.9]} 41. h6+ {[%clk 0:00:04.4]} 41... Kh7 {[%clk 0:00:16.4]}
42. Rxe6 {[%clk 0:00:03.8]} 42... fxg4+ {[%clk 0:00:16.5]} 43. Kxg4 {[%clk
0:00:04.5]} 43... Rxd7 {[%clk 0:00:15.7]} 44. Kxg5 {[%clk 0:00:03.3]} 44... Rb7
{[%clk 0:00:12.3]} 45. Re3 {[%clk 0:00:02.4]} 45... b4 {[%clk 0:00:12.6]} 46.
axb4 {[%clk 0:00:03.3]} 46... axb4 {[%clk 0:00:13.5]} 47. Rb3 {[%clk 0:00:03.8]}
47... Rb5+ {[%clk 0:00:14]} 48. Kf4 {[%clk 0:00:04.2]} 48... Kxh6 {[%clk
0:00:14.5]} 49. Ke4 {[%clk 0:00:04.6]} 49... Kg6 {[%clk 0:00:11.9]} 1/2-1/2

[Event "*** Titled Tuesday Blitz"]
[Site "Chess.com"]
[Date "2021.03.30"]
[Round "9"]
[White "kidagent"]
[Black "MalyDominator"]
[Result "0-1"]
[WhiteElo "2326"]
[BlackElo "2491"]
[TimeControl "180+1"]
[EndTime "11:47:31 PDT"]
[Termination "MalyDominator won by resignation"]

1. e4 {[%clk 0:03:00.9]} 1... c5 {[%clk 0:02:58.9]} 2. Nf3 {[%clk 0:03:01.1]}
2... d6 {[%clk 0:02:59.3]} 3. d4 {[%clk 0:03:01.7]} 3... cxd4 {[%clk 0:03:00.2]}
4. Nxd4 {[%clk 0:03:02.1]} 4... Nf6 {[%clk 0:03:00.8]} 5. Nc3 {[%clk 0:03:02.5]}
5... Nc6 {[%clk 0:03:01.4]} 6. Be2 {[%clk 0:03:01]} 6... e5 {[%clk 0:03:01.3]}
7. Nb3 {[%clk 0:03:00.5]} 7... Be7 {[%clk 0:03:01.5]} 8. Be3 {[%clk 0:02:58.9]}
8... O-O {[%clk 0:03:01.2]} 9. O-O {[%clk 0:02:59.4]} 9... a5 {[%clk 0:03:01.1]}
10. a3 {[%clk 0:02:48.5]} 10... a4 {[%clk 0:02:59.1]} 11. Nc1 {[%clk 0:02:47.8]}
11... Be6 {[%clk 0:02:57.8]} 12. f4 {[%clk 0:02:36.9]} 12... d5 {[%clk
0:02:53.8]} 13. exd5 {[%clk 0:02:27.3]} 13... Nxd5 {[%clk 0:02:52.4]} 14. Nxd5
{[%clk 0:02:26.6]} 14... Bxd5 {[%clk 0:02:50.6]} 15. fxe5 {[%clk 0:02:22.9]}
15... Nxe5 {[%clk 0:02:47.6]} 16. Bd4 {[%clk 0:02:14.3]} 16... Nc6 {[%clk
0:02:46.1]} 17. Bc3 {[%clk 0:02:12.1]} 17... Bc5+ {[%clk 0:02:43.9]} 18. Kh1
{[%clk 0:02:11.2]} 18... Qg5 {[%clk 0:02:35]} 19. Bf3 {[%clk 0:02:10.2]} 19...
Rad8 {[%clk 0:02:32.9]} 20. Nd3 {[%clk 0:02:09.9]} 20... Bd4 {[%clk 0:02:14.9]}
21. Bxd4 {[%clk 0:01:44.3]} 21... Nxd4 {[%clk 0:02:14.3]} 22. Bxd5 {[%clk
0:01:43]} 22... Qxd5 {[%clk 0:02:12.3]} 23. Nb4 {[%clk 0:01:35]} 23... Qc5
{[%clk 0:02:07.2]} 24. Qc1 {[%clk 0:01:25.4]} 24... Rfe8 {[%clk 0:01:55]} 25.
Rb1 {[%clk 0:01:08.5]} 25... Qh5 {[%clk 0:01:52.4]} 26. Qf4 {[%clk 0:01:03]}
26... Ne2 {[%clk 0:01:48.8]} 27. Qf3 {[%clk 0:00:57.6]} 27... Qxf3 {[%clk
0:01:28.2]} 28. Rxf3 {[%clk 0:00:58.5]} 28... Nd4 {[%clk 0:01:25.8]} 29. Rf2
{[%clk 0:00:56.5]} 29... f6 {[%clk 0:01:24.1]} 30. h3 {[%clk 0:00:51.2]} 30...
Re4 {[%clk 0:01:19.1]} 31. Kh2 {[%clk 0:00:44.6]} 31... Rde8 {[%clk 0:01:18.7]}
32. Rd2 {[%clk 0:00:43.1]} 32... Nf5 {[%clk 0:01:11.4]} 33. Rf1 {[%clk
0:00:40.1]} 33... Ne3 {[%clk 0:01:09.3]} 34. Rf3 {[%clk 0:00:33]} 34... Nc4
{[%clk 0:01:07.1]} 35. Rd7 {[%clk 0:00:32.5]} 35... Ne5 {[%clk 0:00:44.5]} 36.
Rxb7 {[%clk 0:00:32.3]} 36... Nxf3+ {[%clk 0:00:44.8]} 37. gxf3 {[%clk
0:00:32.6]} 37... Re2+ {[%clk 0:00:41.4]} 38. Kg3 {[%clk 0:00:33]} 38... Rd2
{[%clk 0:00:40.1]} 39. Nd3 {[%clk 0:00:21.2]} 39... Rxc2 {[%clk 0:00:37]} 40.
Nf4 {[%clk 0:00:21.1]} 40... Rd2 {[%clk 0:00:24.2]} 41. Nh5 {[%clk 0:00:20.1]}
41... Ree2 {[%clk 0:00:21.4]} 42. Rxg7+ {[%clk 0:00:19]} 42... Kf8 {[%clk
0:00:21.9]} 43. Kh4 {[%clk 0:00:17.9]} 43... Rxb2 {[%clk 0:00:17.8]} 44. Rxh7
{[%clk 0:00:17.4]} 44... Rb3 {[%clk 0:00:16.9]} 45. Nxf6 {[%clk 0:00:16.3]}
45... Rxf3 {[%clk 0:00:16.7]} 46. Kg5 {[%clk 0:00:15.5]} 46... Rg2+ {[%clk
0:00:15.4]} 47. Ng4 {[%clk 0:00:15.3]} 47... Rxa3 {[%clk 0:00:14.8]} 48. Kf6
{[%clk 0:00:14.9]} 48... Rf3+ {[%clk 0:00:14.9]} 49. Kg6 {[%clk 0:00:15.1]}
49... a3 {[%clk 0:00:14.4]} 50. Ra7 {[%clk 0:00:14.7]} 50... a2 {[%clk
0:00:14.5]} 51. Kg5 {[%clk 0:00:14.5]} 51... Rf1 {[%clk 0:00:13.6]} 52. Ra8+
{[%clk 0:00:14.6]} 52... Ke7 {[%clk 0:00:13.5]} 53. Ra7+ {[%clk 0:00:14.9]}
53... Kd6 {[%clk 0:00:14]} 54. Ra6+ {[%clk 0:00:13.9]} 54... Kc5 {[%clk
0:00:14.1]} 0-1

[Event "*** Titled Tuesday Blitz"]
[Site "Chess.com"]
[Date "2021.03.30"]
[Round "9"]
[White "katchesskat"]
[Black "MuhittinBuker"]
[Result "0-1"]
[WhiteElo "2281"]
[BlackElo "2206"]
[TimeControl "180+1"]
[EndTime "11:47:31 PDT"]
[Termination "MuhittinBuker won on time"]

1. c4 {[%clk 0:03:00.9]} 1... Nf6 {[%clk 0:02:59.2]} 2. e3 {[%clk 0:02:59.3]}
2... e6 {[%clk 0:02:59.5]} 3. a3 {[%clk 0:02:58.8]} 3... d5 {[%clk 0:02:59.9]}
4. b4 {[%clk 0:02:58.6]} 4... Be7 {[%clk 0:02:59.8]} 5. Bb2 {[%clk 0:02:58.7]}
5... O-O {[%clk 0:03:00.3]} 6. g4 {[%clk 0:02:57.8]} 6... c5 {[%clk 0:02:57.7]}
7. bxc5 {[%clk 0:02:54.6]} 7... Bxc5 {[%clk 0:02:56.1]} 8. g5 {[%clk 0:02:54.5]}
8... Nfd7 {[%clk 0:02:54.1]} 9. h4 {[%clk 0:02:54.3]} 9... dxc4 {[%clk 0:02:51]}
10. Bxc4 {[%clk 0:02:53.5]} 10... b5 {[%clk 0:02:47]} 11. Bd3 {[%clk 0:02:48]}
11... Bb7 {[%clk 0:02:46.7]} 12. Nf3 {[%clk 0:02:43.6]} 12... Qc7 {[%clk
0:02:41.3]} 13. Rg1 {[%clk 0:02:41.6]} 13... a6 {[%clk 0:02:40.2]} 14. Qc2
{[%clk 0:02:40.9]} 14... Bxf3 {[%clk 0:02:30.7]} 15. Bxh7+ {[%clk 0:02:38.2]}
15... Kh8 {[%clk 0:02:30.2]} 16. h5 {[%clk 0:02:35.2]} 16... e5 {[%clk
0:02:26.5]} 17. h6 {[%clk 0:02:31]} 17... Qd6 {[%clk 0:02:15.1]} 18. hxg7+
{[%clk 0:02:23]} 18... Kxg7 {[%clk 0:02:14.7]} 19. g6 {[%clk 0:02:04.4]} 19...
f6 {[%clk 0:02:12.9]} 20. Qf5 {[%clk 0:01:53.2]} 20... e4 {[%clk 0:02:05.5]} 21.
Qh3 {[%clk 0:01:34.2]} 21... Qd3 {[%clk 0:02:01.9]} 22. Nc3 {[%clk 0:01:32.4]}
22... Rh8 {[%clk 0:01:38.7]} 23. Qe6 {[%clk 0:01:28.9]} 23... Rf8 {[%clk
0:01:32.7]} 24. Bg8 {[%clk 0:01:12.7]} 24... Ne5 {[%clk 0:01:25.7]} 25. Qh3
{[%clk 0:01:08.4]} 25... Bh5 {[%clk 0:01:11.5]} 26. Qxh5 {[%clk 0:00:53.1]}
26... Nf3+ {[%clk 0:01:11.2]} 27. Qxf3 {[%clk 0:00:53.1]} 27... exf3 {[%clk
0:01:11.1]} 28. Bd5 {[%clk 0:00:53.6]} 28... Ra7 {[%clk 0:01:10.2]} 29. Bxf3
{[%clk 0:00:52.9]} 29... Rd7 {[%clk 0:01:10.3]} 30. Rd1 {[%clk 0:00:49.4]} 30...
Rfd8 {[%clk 0:01:06.7]} 31. Ne4 {[%clk 0:00:44.9]} 31... Be7 {[%clk 0:01:00.7]}
32. Rh1 {[%clk 0:00:44.2]} 32... Kxg6 {[%clk 0:00:53.4]} 33. Rg1+ {[%clk
0:00:36.5]} 33... Kh6 {[%clk 0:00:45.5]} 34. Nxf6 {[%clk 0:00:29.6]} 34... Bxf6
{[%clk 0:00:41]} 35. Bxf6 {[%clk 0:00:28.8]} 35... Qf5 {[%clk 0:00:29.2]} 36.
Bxd8 {[%clk 0:00:10.2]} 36... Rxd8 {[%clk 0:00:27.9]} 37. Bg4 {[%clk 0:00:09.4]}
37... Qd3 {[%clk 0:00:26.6]} 38. Be2 {[%clk 0:00:08.8]} 38... Qxa3 {[%clk
0:00:26.1]} 39. Rh1+ {[%clk 0:00:07]} 39... Kg7 {[%clk 0:00:25.4]} 40. Rg1+
{[%clk 0:00:06.9]} 40... Kf8 {[%clk 0:00:24.7]} 41. f4 {[%clk 0:00:07]} 41...
Qb4 {[%clk 0:00:24.4]} 42. Rg2 {[%clk 0:00:05.4]} 42... a5 {[%clk 0:00:24.8]}
43. Bf3 {[%clk 0:00:05.2]} 43... a4 {[%clk 0:00:24.8]} 44. Rc1 {[%clk
0:00:05.5]} 44... a3 {[%clk 0:00:23.9]} 45. Rh2 {[%clk 0:00:03.3]} 45... a2
{[%clk 0:00:23.6]} 46. Bd1 {[%clk 0:00:02]} 46... Kg7 {[%clk 0:00:23.1]} 47.
Rc7+ {[%clk 0:00:01.7]} 47... Kf6 {[%clk 0:00:22.5]} 48. Rh6+ {[%clk 0:00:01.7]}
48... Kf5 {[%clk 0:00:21.7]} 49. Rh5+ {[%clk 0:00:02]} 49... Ke6 {[%clk
0:00:20.4]} 50. Bg4+ {[%clk 0:00:01.4]} 50... Kd6 {[%clk 0:00:20]} 0-1

[Event "*** Titled Tuesday Blitz"]
[Site "Chess.com"]
[Date "2021.03.30"]
[Round "9"]
[White "shnitez"]
[Black "kamilianin235"]
[Result "1-0"]
[WhiteElo "2476"]
[BlackElo "2279"]
[TimeControl "180+1"]
[EndTime "11:47:34 PDT"]
[Termination "shnitez won by resignation"]

1. c4 {[%clk 0:03:00.9]} 1... e5 {[%clk 0:02:59.5]} 2. Nc3 {[%clk 0:03:00.4]}
2... Nf6 {[%clk 0:02:59.6]} 3. Nf3 {[%clk 0:03:00.7]} 3... d6 {[%clk 0:02:59.1]}
4. d4 {[%clk 0:03:00.2]} 4... exd4 {[%clk 0:02:59]} 5. Nxd4 {[%clk 0:03:01.1]}
5... g6 {[%clk 0:02:58.7]} 6. g3 {[%clk 0:02:58.5]} 6... Bg7 {[%clk 0:02:58.4]}
7. Bg2 {[%clk 0:02:59]} 7... O-O {[%clk 0:02:56.5]} 8. O-O {[%clk 0:02:59.3]}
8... Re8 {[%clk 0:02:56]} 9. b3 {[%clk 0:02:56.3]} 9... Nfd7 {[%clk 0:02:50.7]}
10. Bb2 {[%clk 0:02:54]} 10... c6 {[%clk 0:02:42.1]} 11. Qd2 {[%clk 0:02:52.3]}
11... Qc7 {[%clk 0:02:39.4]} 12. Rad1 {[%clk 0:02:46.3]} 12... Na6 {[%clk
0:02:38]} 13. Nc2 {[%clk 0:02:28.5]} 13... Re6 {[%clk 0:02:14.5]} 14. Nd4 {[%clk
0:02:23]} 14... Re8 {[%clk 0:02:05.8]} 15. Nc2 {[%clk 0:02:22.7]} 15... Re6
{[%clk 0:02:04.7]} 16. Bh3 {[%clk 0:02:22.8]} 16... f5 {[%clk 0:02:03.1]} 17. e4
{[%clk 0:02:17.6]} 17... Ndc5 {[%clk 0:01:43.1]} 18. exf5 {[%clk 0:02:12.7]}
18... Re8 {[%clk 0:01:41.7]} 19. Ne3 {[%clk 0:02:00.4]} 19... Be5 {[%clk
0:01:21.5]} 20. Rfe1 {[%clk 0:01:51.3]} 20... Nb4 {[%clk 0:01:14.1]} 21. Nb5
{[%clk 0:01:17.5]} 21... cxb5 {[%clk 0:01:00.7]} 22. Bxe5 {[%clk 0:01:17.3]}
22... Nbd3 {[%clk 0:00:54.2]} 23. Ba1 {[%clk 0:01:06.5]} 23... Nxe1 {[%clk
0:00:50]} 24. Rxe1 {[%clk 0:01:06.4]} 24... Bxf5 {[%clk 0:00:34.5]} 25. Bxf5
{[%clk 0:00:54.7]} 25... gxf5 {[%clk 0:00:33.5]} 26. Nxf5 {[%clk 0:00:49.5]}
26... Rxe1+ {[%clk 0:00:27.9]} 27. Qxe1 {[%clk 0:00:50.4]} 27... Qd7 {[%clk
0:00:19.8]} 28. Nh6+ {[%clk 0:00:42.3]} 28... Kf8 {[%clk 0:00:19.4]} 29. Qc3
{[%clk 0:00:35.7]} 29... Rc8 {[%clk 0:00:17.2]} 30. Qf6+ {[%clk 0:00:28.1]}
30... Ke8 {[%clk 0:00:15.5]} 31. Nf5 {[%clk 0:00:27.6]} 31... Ne6 {[%clk
0:00:12]} 32. Qh8+ {[%clk 0:00:23.7]} 32... Nf8 {[%clk 0:00:11.3]} 33. Qf6
{[%clk 0:00:18.7]} 33... Ne6 {[%clk 0:00:09.1]} 34. cxb5 {[%clk 0:00:15.6]}
34... Rc1+ {[%clk 0:00:08]} 35. Kg2 {[%clk 0:00:16]} 35... Rd1 {[%clk
0:00:06.1]} 36. h4 {[%clk 0:00:15]} 36... Qf7 {[%clk 0:00:05.9]} 37. Qh8+ {[%clk
0:00:12.7]} 37... Nf8 {[%clk 0:00:05.1]} 38. Ne3 {[%clk 0:00:11.4]} 38... Rd2
{[%clk 0:00:03.5]} 39. Bf6 {[%clk 0:00:10.6]} 39... Kd7 {[%clk 0:00:02.7]} 40.
Nc4 {[%clk 0:00:10.3]} 40... Ng6 {[%clk 0:00:02.8]} 41. Qd8+ {[%clk 0:00:08.6]}
41... Ke6 {[%clk 0:00:01.8]} 42. Nxd2 {[%clk 0:00:09]} 42... Qxf6 {[%clk
0:00:02.2]} 43. Qc8+ {[%clk 0:00:08.8]} 43... Ke5 {[%clk 0:00:02.1]} 44. Nf3+
{[%clk 0:00:07.9]} 44... Ke4 {[%clk 0:00:02.4]} 45. Qxb7+ {[%clk 0:00:07.9]}
45... Kd3 {[%clk 0:00:02.3]} 46. Qd5+ {[%clk 0:00:07.5]} 46... Kc2 {[%clk
0:00:02.5]} 47. Qd2+ {[%clk 0:00:07.2]} 47... Kb1 {[%clk 0:00:02.2]} 48. Nd4
{[%clk 0:00:06.3]} 48... Qe5 {[%clk 0:00:01.7]} 49. Qc2+ {[%clk 0:00:05.6]}
49... Ka1 {[%clk 0:00:01.2]} 50. Qc3+ {[%clk 0:00:05.7]} 1-0

[Event "*** Titled Tuesday Blitz"]
[Site "Chess.com"]
[Date "2021.03.30"]
[Round "9"]
[White "Caterpiller35"]
[Black "AlexSuv"]
[Result "1-0"]
[WhiteElo "2400"]
[BlackElo "2528"]
[TimeControl "180+1"]
[EndTime "11:47:35 PDT"]
[Termination "Caterpiller35 won by resignation"]

1. d4 {[%clk 0:03:00]} 1... Nf6 {[%clk 0:02:55.1]} 2. Bg5 {[%clk 0:02:59.7]}
2... Ne4 {[%clk 0:02:53.2]} 3. Bf4 {[%clk 0:02:59.7]} 3... d6 {[%clk 0:02:49.5]}
4. f3 {[%clk 0:02:59.1]} 4... Nf6 {[%clk 0:02:49.6]} 5. e4 {[%clk 0:02:59.3]}
5... g6 {[%clk 0:02:50]} 6. Nc3 {[%clk 0:02:59.1]} 6... Bg7 {[%clk 0:02:50.4]}
7. Qd2 {[%clk 0:02:59.5]} 7... a6 {[%clk 0:02:42.2]} 8. h4 {[%clk 0:02:49.4]}
8... h6 {[%clk 0:02:35.2]} 9. O-O-O {[%clk 0:02:49]} 9... b5 {[%clk 0:02:34.5]}
10. Kb1 {[%clk 0:02:42]} 10... Bb7 {[%clk 0:02:31.9]} 11. Nh3 {[%clk 0:02:30.1]}
11... Nbd7 {[%clk 0:02:30.5]} 12. Be3 {[%clk 0:02:30]} 12... c5 {[%clk
0:02:28.1]} 13. g4 {[%clk 0:02:23.9]} 13... Rc8 {[%clk 0:02:20.4]} 14. Nf2
{[%clk 0:02:09.4]} 14... cxd4 {[%clk 0:02:00]} 15. Bxd4 {[%clk 0:02:08.8]} 15...
Ne5 {[%clk 0:01:47.3]} 16. Qe3 {[%clk 0:01:42]} 16... Nc4 {[%clk 0:01:26.6]} 17.
Bxc4 {[%clk 0:01:40.8]} 17... Rxc4 {[%clk 0:01:27.5]} 18. g5 {[%clk 0:01:35]}
18... Nh5 {[%clk 0:00:50.3]} 19. Bxg7 {[%clk 0:01:29.8]} 19... Nxg7 {[%clk
0:00:51.2]} 20. gxh6 {[%clk 0:01:25.8]} 20... Nh5 {[%clk 0:00:48.5]} 21. e5
{[%clk 0:01:17.4]} 21... O-O {[%clk 0:00:42.5]} 22. exd6 {[%clk 0:01:10.8]}
22... exd6 {[%clk 0:00:43.4]} 23. Nce4 {[%clk 0:01:08.4]} 23... d5 {[%clk
0:00:37.7]} 24. Ng4 {[%clk 0:01:00.1]} 24... d4 {[%clk 0:00:20.1]} 25. Qg5
{[%clk 0:00:48.5]} 25... Bxe4 {[%clk 0:00:20.2]} 26. fxe4 {[%clk 0:00:46.5]}
26... Re8 {[%clk 0:00:19.2]} 27. e5 {[%clk 0:00:40.2]} 27... Rc7 {[%clk
0:00:14]} 28. h7+ {[%clk 0:00:33.1]} 28... Kxh7 {[%clk 0:00:12.9]} 29. Nf6+
{[%clk 0:00:31.3]} 29... Nxf6 {[%clk 0:00:12.2]} 30. exf6 {[%clk 0:00:11.2]}
30... Re6 {[%clk 0:00:08.6]} 31. h5 {[%clk 0:00:10.9]} 31... Qxf6 {[%clk
0:00:08.8]} 32. hxg6+ {[%clk 0:00:11]} 32... Kg7 {[%clk 0:00:06.6]} 33. Rh7+
{[%clk 0:00:10.7]} 33... Kf8 {[%clk 0:00:05]} 34. g7+ {[%clk 0:00:06]} 34... Ke7
{[%clk 0:00:05.5]} 35. Qxf6+ {[%clk 0:00:04]} 35... Rxf6 {[%clk 0:00:06.4]} 36.
g8=Q {[%clk 0:00:04.9]} 36... Rd7 {[%clk 0:00:06.8]} 37. Re1+ {[%clk 0:00:05]}
37... Kd6 {[%clk 0:00:06.4]} 38. Qg3+ {[%clk 0:00:05.8]} 38... Kc6 {[%clk
0:00:06.8]} 39. Rh5 {[%clk 0:00:06]} 39... Rfd6 {[%clk 0:00:06.3]} 40. Rhe5
{[%clk 0:00:05.8]} 40... f6 {[%clk 0:00:06.2]} 41. Re6 {[%clk 0:00:05.9]} 41...
Kd5 {[%clk 0:00:06.6]} 42. Rxd6+ {[%clk 0:00:05.7]} 42... Rxd6 {[%clk
0:00:07.5]} 43. Qf4 {[%clk 0:00:05.9]} 43... Kc5 {[%clk 0:00:07.9]} 44. Qf5+
{[%clk 0:00:06.2]} 44... Kc6 {[%clk 0:00:08.4]} 45. Re6 {[%clk 0:00:05.9]} 45...
Kd7 {[%clk 0:00:08.5]} 46. Rxf6+ {[%clk 0:00:05.5]} 1-0